[Event "Late-Titled-Tuesday-Blitz-June-04-2024"]
[Site "Chess.com"]
[Date "2024.06.04"]
[Round "4"]
[White "SilverCityIndigo"]
[Black "carloseduar100"]
[Result "1-0"]
[WhiteElo "2472"]
[BlackElo "2260"]
[TimeControl "180+1"]
[EndTime "14:38:08 PDT"]
[Termination "SilverCityIndigo won by checkmate"]

1. d4 {[%clk 0:03:00.9]} 1... d5 {[%clk 0:02:59.5]} 2. Nf3 {[%clk 0:03:01.3]}
2... c6 {[%clk 0:02:59.1]} 3. c4 {[%clk 0:03:01.8]} 3... a6 {[%clk 0:02:57.3]}
4. e3 {[%clk 0:03:01.7]} 4... e6 {[%clk 0:02:56.8]} 5. Nbd2 {[%clk 0:03:00.5]}
5... Nf6 {[%clk 0:02:57.1]} 6. b3 {[%clk 0:03:00.3]} 6... Bb4 {[%clk 0:02:54.6]}
7. Bb2 {[%clk 0:03:00.2]} 7... Nbd7 {[%clk 0:02:54.9]} 8. a3 {[%clk 0:02:58.8]}
8... Bxd2+ {[%clk 0:02:54.6]} 9. Qxd2 {[%clk 0:02:58.4]} 9... O-O {[%clk
0:02:54.1]} 10. Bd3 {[%clk 0:02:58.1]} 10... Re8 {[%clk 0:02:54.4]} 11. Ne5
{[%clk 0:02:58.4]} 11... Nxe5 {[%clk 0:02:50.7]} 12. dxe5 {[%clk 0:02:59.2]}
12... Nd7 {[%clk 0:02:51.4]} 13. O-O-O {[%clk 0:02:46.8]} 13... b5 {[%clk
0:02:46.1]} 14. f4 {[%clk 0:02:38.7]} 14... bxc4 {[%clk 0:02:45.3]} 15. bxc4
{[%clk 0:02:38.7]} 15... Rb8 {[%clk 0:02:45.5]} 16. h4 {[%clk 0:02:27.8]} 16...
a5 {[%clk 0:02:45.3]} 17. h5 {[%clk 0:02:25.6]} 17... Ba6 {[%clk 0:02:43.8]} 18.
g4 {[%clk 0:01:58.5]} 18... Nc5 {[%clk 0:02:43.1]} 19. Bc2 {[%clk 0:01:19]}
19... Bxc4 {[%clk 0:02:40.1]} 20. f5 {[%clk 0:00:54.8]} 20... Qb6 {[%clk
0:02:34.6]} 21. Bd4 {[%clk 0:00:43.1]} 21... Bb3 {[%clk 0:02:26.7]} 22. Qc3
{[%clk 0:00:32.5]} 22... Bxc2 {[%clk 0:02:22.3]} 23. Kxc2 {[%clk 0:00:32.8]}
23... Qb3+ {[%clk 0:02:13.6]} 24. Qxb3 {[%clk 0:00:25.5]} 24... Nxb3 {[%clk
0:02:14.5]} 25. Ba7 {[%clk 0:00:10.4]} 25... Rb7 {[%clk 0:02:13.7]} 26. a4
{[%clk 0:00:07.3]} 26... c5 {[%clk 0:02:04.2]} 27. Rb1 {[%clk 0:00:05.9]} 27...
c4 {[%clk 0:02:04.3]} 28. Bd4 {[%clk 0:00:05.6]} 28... Reb8 {[%clk 0:02:04.3]}
29. f6 {[%clk 0:00:04]} 29... Nxd4+ {[%clk 0:01:50.7]} 30. exd4 {[%clk
0:00:04.6]} 30... Rxb1 {[%clk 0:01:50.9]} 31. Rxb1 {[%clk 0:00:05.3]} 31... Rxb1
{[%clk 0:01:51.3]} 32. Kxb1 {[%clk 0:00:06.2]} 32... gxf6 {[%clk 0:01:51.8]} 33.
exf6 {[%clk 0:00:06.6]} 33... h6 {[%clk 0:01:49.9]} 34. Kc2 {[%clk 0:00:06.4]}
34... Kf8 {[%clk 0:01:50.5]} 35. Kc3 {[%clk 0:00:07]} 35... Ke8 {[%clk
0:01:50.8]} 36. Kc2 {[%clk 0:00:03.7]} 36... Kd7 {[%clk 0:01:51.1]} 37. Kc3
{[%clk 0:00:04.3]} 37... Kd6 {[%clk 0:01:51.5]} 38. g5 {[%clk 0:00:04.3]} 38...
hxg5 {[%clk 0:01:27.5]} 39. h6 {[%clk 0:00:04.4]} 39... e5 {[%clk 0:01:19.8]}
40. h7 {[%clk 0:00:04.4]} 40... exd4+ {[%clk 0:01:14.3]} 41. Kxd4 {[%clk
0:00:04.3]} 41... Ke6 {[%clk 0:01:08.3]} 42. h8=Q {[%clk 0:00:05.2]} 42... g4
{[%clk 0:01:07]} 43. Qd8 {[%clk 0:00:05.7]} 43... Kf5 {[%clk 0:01:05.6]} 44.
Qxd5+ {[%clk 0:00:05.4]} 44... Kxf6 {[%clk 0:01:06.1]} 45. Qe5+ {[%clk
0:00:05.8]} 45... Kg6 {[%clk 0:01:06.3]} 46. Qf4 {[%clk 0:00:06.4]} 46... f5
{[%clk 0:01:06.7]} 47. Ke5 {[%clk 0:00:07]} 47... c3 {[%clk 0:01:05.7]} 48.
Qxf5+ {[%clk 0:00:07.5]} 48... Kh6 {[%clk 0:01:06.4]} 49. Qxg4 {[%clk
0:00:08.1]} 49... c2 {[%clk 0:01:06.6]} 50. Kf6 {[%clk 0:00:08.4]} 50... c1=Q
{[%clk 0:01:04.4]} 51. Qg6# {[%clk 0:00:08.7]} 1-0

[Event "Late-Titled-Tuesday-Blitz-June-04-2024"]
[Site "Chess.com"]
[Date "2024.06.04"]
[Round "4"]
[White "ChessQueen"]
[Black "Nemsko"]
[Result "1-0"]
[WhiteElo "2727"]
[BlackElo "2341"]
[TimeControl "180+1"]
[EndTime "14:38:08 PDT"]
[Termination "ChessQueen won on time"]

1. e4 {[%clk 0:03:00.9]} 1... e5 {[%clk 0:02:58.7]} 2. Nf3 {[%clk 0:03:00]} 2...
Nc6 {[%clk 0:02:58.5]} 3. Bb5 {[%clk 0:03:00.2]} 3... a6 {[%clk 0:02:58.8]} 4.
Ba4 {[%clk 0:03:00.3]} 4... Nf6 {[%clk 0:02:59.4]} 5. d4 {[%clk 0:03:00.6]} 5...
Nxe4 {[%clk 0:02:34]} 6. O-O {[%clk 0:02:54.3]} 6... d5 {[%clk 0:02:13.7]} 7.
Nxe5 {[%clk 0:02:46.5]} 7... Bd7 {[%clk 0:02:02.1]} 8. Bxc6 {[%clk 0:02:41.9]}
8... Bxc6 {[%clk 0:01:53.9]} 9. Nxc6 {[%clk 0:02:36.2]} 9... bxc6 {[%clk
0:01:54]} 10. f3 {[%clk 0:02:35.4]} 10... Nf6 {[%clk 0:01:48.6]} 11. Nc3 {[%clk
0:02:30.3]} 11... Be7 {[%clk 0:01:46.6]} 12. Ne2 {[%clk 0:02:28.6]} 12... O-O
{[%clk 0:01:45.4]} 13. Ng3 {[%clk 0:02:28.8]} 13... Re8 {[%clk 0:01:39]} 14. Nf5
{[%clk 0:02:27.3]} 14... Bf8 {[%clk 0:01:35.7]} 15. Bg5 {[%clk 0:02:26.6]} 15...
Re6 {[%clk 0:01:35.7]} 16. Qd3 {[%clk 0:02:24.4]} 16... c5 {[%clk 0:01:33]} 17.
Rae1 {[%clk 0:02:19.6]} 17... cxd4 {[%clk 0:01:23.8]} 18. Rxe6 {[%clk
0:02:04.7]} 18... fxe6 {[%clk 0:01:24.7]} 19. Nxd4 {[%clk 0:02:05.1]} 19... e5
{[%clk 0:01:14.6]} 20. Nf5 {[%clk 0:01:58.3]} 20... c6 {[%clk 0:00:46.5]} 21.
Qe3 {[%clk 0:01:50.3]} 21... Qe8 {[%clk 0:00:24.1]} 22. Bxf6 {[%clk 0:01:13.4]}
22... gxf6 {[%clk 0:00:25]} 23. f4 {[%clk 0:01:13.9]} 23... e4 {[%clk
0:00:21.7]} 24. Rd1 {[%clk 0:01:08]} 24... Rb8 {[%clk 0:00:19.3]} 25. b3 {[%clk
0:01:05.5]} 25... Rb7 {[%clk 0:00:19.1]} 26. c4 {[%clk 0:01:04.3]} 26... Qe6
{[%clk 0:00:16.1]} 27. Qh3 {[%clk 0:01:00.3]} 27... Qf7 {[%clk 0:00:11.7]} 28.
cxd5 {[%clk 0:00:56.3]} 28... cxd5 {[%clk 0:00:12.6]} 29. Kh1 {[%clk 0:00:51.1]}
29... Rc7 {[%clk 0:00:11.5]} 30. Ne3 {[%clk 0:00:45.7]} 30... Rd7 {[%clk
0:00:10]} 31. Qf5 {[%clk 0:00:42.5]} 31... d4 {[%clk 0:00:08.6]} 32. Ng4 {[%clk
0:00:42.7]} 32... Bg7 {[%clk 0:00:02.9]} 33. Qxe4 {[%clk 0:00:42.5]} 33... f5
{[%clk 0:00:02.8]} 34. Qa8+ {[%clk 0:00:42.6]} 34... Bf8 {[%clk 0:00:03.2]} 35.
Ne5 {[%clk 0:00:41.9]} 35... Qd5 {[%clk 0:00:03.8]} 36. Qxa6 {[%clk 0:00:40.3]}
36... Rg7 {[%clk 0:00:03.9]} 37. Qe2 {[%clk 0:00:36.9]} 37... h5 {[%clk
0:00:01.3]} 38. Qf3 {[%clk 0:00:35.4]} 38... Qe4 {[%clk 0:00:01]} 39. h3 {[%clk
0:00:32.9]} 1-0

[Event "Late-Titled-Tuesday-Blitz-June-04-2024"]
[Site "Chess.com"]
[Date "2024.06.04"]
[Round "4"]
[White "sammartin99"]
[Black "protectiago"]
[Result "0-1"]
[WhiteElo "2290"]
[BlackElo "2128"]
[TimeControl "180+1"]
[EndTime "14:38:11 PDT"]
[Termination "protectiago won on time"]

1. d4 {[%clk 0:03:00.9]} 1... Nf6 {[%clk 0:02:58.9]} 2. Bg5 {[%clk 0:02:59.2]}
2... d5 {[%clk 0:02:58.1]} 3. Nd2 {[%clk 0:02:54.6]} 3... Nbd7 {[%clk
0:02:53.5]} 4. Ngf3 {[%clk 0:02:51.9]} 4... g6 {[%clk 0:02:39.1]} 5. e3 {[%clk
0:02:40.2]} 5... Bg7 {[%clk 0:02:38]} 6. c4 {[%clk 0:02:28.6]} 6... O-O {[%clk
0:02:33.4]} 7. cxd5 {[%clk 0:02:20.9]} 7... Nxd5 {[%clk 0:02:31.2]} 8. Bc4
{[%clk 0:02:14.2]} 8... N5b6 {[%clk 0:02:30.1]} 9. Bb3 {[%clk 0:02:12.5]} 9...
h6 {[%clk 0:02:25]} 10. Bh4 {[%clk 0:02:11.8]} 10... Nf6 {[%clk 0:02:23.1]} 11.
O-O {[%clk 0:02:10.6]} 11... Bg4 {[%clk 0:02:07.5]} 12. h3 {[%clk 0:02:10]}
12... Bxf3 {[%clk 0:02:00.6]} 13. Nxf3 {[%clk 0:02:10.9]} 13... Nbd5 {[%clk
0:01:53.5]} 14. Qc2 {[%clk 0:02:02.1]} 14... c6 {[%clk 0:01:45.8]} 15. e4 {[%clk
0:01:50]} 15... Nb4 {[%clk 0:01:36.3]} 16. Qe2 {[%clk 0:01:49.9]} 16... a5
{[%clk 0:01:18]} 17. a3 {[%clk 0:01:32.9]} 17... Na6 {[%clk 0:01:17.3]} 18. e5
{[%clk 0:00:52.9]} 18... Nd5 {[%clk 0:01:14.4]} 19. e6 {[%clk 0:00:52.6]} 19...
f6 {[%clk 0:01:00.4]} 20. Bg3 {[%clk 0:00:39]} 20... Qb6 {[%clk 0:00:59.7]} 21.
Bc2 {[%clk 0:00:22.2]} 21... Nac7 {[%clk 0:00:56]} 22. Bxg6 {[%clk 0:00:20.4]}
22... f5 {[%clk 0:00:49.2]} 23. Be5 {[%clk 0:00:09.9]} 23... Nxe6 {[%clk
0:00:45.8]} 24. Bxg7 {[%clk 0:00:09.7]} 24... Nxg7 {[%clk 0:00:45.9]} 25. Qd2
{[%clk 0:00:03.1]} 25... f4 {[%clk 0:00:37.8]} 26. Rfe1 {[%clk 0:00:02]} 26...
Rf6 {[%clk 0:00:37.2]} 27. Bd3 {[%clk 0:00:01.6]} 27... Raf8 {[%clk 0:00:32.8]}
28. Ne5 {[%clk 0:00:01.4]} 28... e6 {[%clk 0:00:15.6]} 29. Nd7 {[%clk
0:00:01.1]} 29... Qc7 {[%clk 0:00:14.6]} 0-1

[Event "Late-Titled-Tuesday-Blitz-June-04-2024"]
[Site "Chess.com"]
[Date "2024.06.04"]
[Round "4"]
[White "BardArtem"]
[Black "StellarChess"]
[Result "1-0"]
[WhiteElo "2726"]
[BlackElo "2529"]
[TimeControl "180+1"]
[EndTime "14:38:13 PDT"]
[Termination "BardArtem won by resignation"]

1. e4 {[%clk 0:03:00.9]} 1... e5 {[%clk 0:03:00.3]} 2. Nf3 {[%clk 0:02:56.3]}
2... Nf6 {[%clk 0:03:00.3]} 3. Nc3 {[%clk 0:02:51.5]} 3... Bb4 {[%clk
0:02:59.2]} 4. Nxe5 {[%clk 0:02:50.6]} 4... O-O {[%clk 0:02:59]} 5. Nd3 {[%clk
0:02:51]} 5... Bxc3 {[%clk 0:02:58.9]} 6. dxc3 {[%clk 0:02:51.8]} 6... Nxe4
{[%clk 0:02:58.2]} 7. Be2 {[%clk 0:02:52.3]} 7... Re8 {[%clk 0:02:58.5]} 8. O-O
{[%clk 0:02:52.7]} 8... d5 {[%clk 0:02:59.1]} 9. Bf3 {[%clk 0:02:51.7]} 9... c6
{[%clk 0:02:58.6]} 10. Re1 {[%clk 0:02:50.7]} 10... Bf5 {[%clk 0:02:50]} 11. Nf4
{[%clk 0:02:20]} 11... Nd7 {[%clk 0:02:45.6]} 12. Be3 {[%clk 0:02:16.3]} 12...
Ndf6 {[%clk 0:02:41.3]} 13. Bd4 {[%clk 0:02:12.8]} 13... Qc7 {[%clk 0:02:35.5]}
14. g3 {[%clk 0:02:09.3]} 14... Rad8 {[%clk 0:02:34.9]} 15. a4 {[%clk
0:02:03.6]} 15... c5 {[%clk 0:02:23.8]} 16. Bxf6 {[%clk 0:02:01.6]} 16... Nxf6
{[%clk 0:02:18.8]} 17. Rxe8+ {[%clk 0:01:58.5]} 17... Rxe8 {[%clk 0:02:16.6]}
18. Nxd5 {[%clk 0:01:58.6]} 18... Nxd5 {[%clk 0:02:15.7]} 19. Qxd5 {[%clk
0:01:59.5]} 19... Bxc2 {[%clk 0:01:51.3]} 20. Qxb7 {[%clk 0:01:59.3]} 20... Qxb7
{[%clk 0:01:49.5]} 21. Bxb7 {[%clk 0:02:00.2]} 21... Rb8 {[%clk 0:01:49.8]} 22.
Re1 {[%clk 0:01:59.9]} 22... Bxa4 {[%clk 0:01:08.8]} 23. Re7 {[%clk 0:01:59.4]}
23... Re8 {[%clk 0:00:56.1]} 24. Rc7 {[%clk 0:01:52.1]} 24... Kf8 {[%clk
0:00:26.7]} 25. Rxc5 {[%clk 0:01:46]} 25... Rb8 {[%clk 0:00:24.5]} 26. Rc7
{[%clk 0:01:44.3]} 26... a5 {[%clk 0:00:17.2]} 27. f4 {[%clk 0:01:40.6]} 27...
Be8 {[%clk 0:00:17.5]} 28. Kf2 {[%clk 0:01:35.9]} 28... a4 {[%clk 0:00:17.4]}
29. Ke3 {[%clk 0:01:36]} 29... Rd8 {[%clk 0:00:16.9]} 30. Rc8 {[%clk 0:01:32.4]}
30... Rxc8 {[%clk 0:00:16.7]} 31. Bxc8 {[%clk 0:01:33.3]} 31... Ke7 {[%clk
0:00:17.6]} 32. Kd4 {[%clk 0:01:31.6]} 32... Kd6 {[%clk 0:00:17.9]} 33. c4
{[%clk 0:01:30.5]} 33... Kc7 {[%clk 0:00:17]} 34. Ba6 {[%clk 0:01:29.9]} 34...
Kb6 {[%clk 0:00:16.7]} 35. Bc8 {[%clk 0:01:28.4]} 35... Kc7 {[%clk 0:00:17.2]}
36. Bf5 {[%clk 0:01:27.7]} 36... g6 {[%clk 0:00:17.5]} 37. Bc2 {[%clk
0:01:25.7]} 37... Kb6 {[%clk 0:00:16.6]} 38. Bd3 {[%clk 0:01:22.3]} 38... Ka5
{[%clk 0:00:15]} 39. Kc5 {[%clk 0:01:20.2]} 39... f6 {[%clk 0:00:14.3]} 40. Bc2
{[%clk 0:01:10.7]} 40... h6 {[%clk 0:00:13.1]} 41. b4+ {[%clk 0:01:07.9]} 41...
axb3 {[%clk 0:00:13.3]} 42. Bxb3 {[%clk 0:01:08.2]} 42... g5 {[%clk 0:00:14.2]}
43. h4 {[%clk 0:01:07]} 43... gxh4 {[%clk 0:00:12.5]} 44. gxh4 {[%clk
0:01:07.9]} 44... Bh5 {[%clk 0:00:11.1]} 45. Bc2 {[%clk 0:01:03.3]} 45... Bf3
{[%clk 0:00:09.9]} 46. Bh7 {[%clk 0:01:03]} 46... Bg2 {[%clk 0:00:09.5]} 47. Bg8
{[%clk 0:01:03.4]} 47... Bf3 {[%clk 0:00:09.6]} 48. Bd5 {[%clk 0:01:04]} 48...
Bg4 {[%clk 0:00:10.2]} 49. Kd6 {[%clk 0:01:04.6]} 49... Kb4 {[%clk 0:00:10.6]}
50. c5 {[%clk 0:01:00.8]} 50... Kb5 {[%clk 0:00:08.7]} 51. c6 {[%clk 0:01:00.8]}
51... Kb6 {[%clk 0:00:08.7]} 52. c7 {[%clk 0:01:01.2]} 52... Bc8 {[%clk
0:00:08.2]} 53. Be6 {[%clk 0:00:57.7]} 53... Bxe6 {[%clk 0:00:07.3]} 54. Kxe6
{[%clk 0:00:58.6]} 54... Kxc7 {[%clk 0:00:08.2]} 55. Kxf6 {[%clk 0:00:59.2]} 1-0

[Event "Late-Titled-Tuesday-Blitz-June-04-2024"]
[Site "Chess.com"]
[Date "2024.06.04"]
[Round "4"]
[White "artin10862"]
[Black "Seppppppy"]
[Result "1-0"]
[WhiteElo "2951"]
[BlackElo "2201"]
[TimeControl "180+1"]
[EndTime "14:38:15 PDT"]
[Termination "artin10862 won by checkmate"]

1. d4 {[%clk 0:02:56.2]} 1... Nf6 {[%clk 0:02:54.1]} 2. Bg5 {[%clk 0:02:54.4]}
2... c5 {[%clk 0:02:50.9]} 3. d5 {[%clk 0:02:43.1]} 3... Qb6 {[%clk 0:02:43.8]}
4. Nc3 {[%clk 0:02:29.6]} 4... Qxb2 {[%clk 0:02:22.4]} 5. Bd2 {[%clk 0:02:28.4]}
5... Qb6 {[%clk 0:02:17.4]} 6. e4 {[%clk 0:02:27.7]} 6... d6 {[%clk 0:02:17]} 7.
Nf3 {[%clk 0:02:13.5]} 7... Nbd7 {[%clk 0:02:14.6]} 8. Bd3 {[%clk 0:01:59.7]}
8... g6 {[%clk 0:02:13]} 9. O-O {[%clk 0:01:58.8]} 9... Bg7 {[%clk 0:02:13.4]}
10. h3 {[%clk 0:01:57.4]} 10... O-O {[%clk 0:02:13.7]} 11. Re1 {[%clk
0:01:57.2]} 11... Ne8 {[%clk 0:02:12.2]} 12. a4 {[%clk 0:01:56.2]} 12... a6
{[%clk 0:02:12.1]} 13. a5 {[%clk 0:01:54.2]} 13... Qd8 {[%clk 0:02:11.8]} 14.
Na4 {[%clk 0:01:50.9]} 14... e6 {[%clk 0:02:05.1]} 15. c4 {[%clk 0:01:49.9]}
15... e5 {[%clk 0:02:01]} 16. Qb1 {[%clk 0:01:43.9]} 16... Nef6 {[%clk
0:01:50.1]} 17. Nh2 {[%clk 0:01:19.6]} 17... Nh5 {[%clk 0:01:35.6]} 18. g3
{[%clk 0:01:19.1]} 18... Ndf6 {[%clk 0:01:01]} 19. Kg2 {[%clk 0:01:15.8]} 19...
Qd7 {[%clk 0:00:59.1]} 20. g4 {[%clk 0:01:11.1]} 20... Rb8 {[%clk 0:00:32.9]}
21. Nb6 {[%clk 0:01:09.5]} 21... Qe7 {[%clk 0:00:31.7]} 22. gxh5 {[%clk
0:00:54.1]} 22... Nxh5 {[%clk 0:00:32.6]} 23. Ra3 {[%clk 0:00:46]} 23... Qh4
{[%clk 0:00:20.3]} 24. Nxc8 {[%clk 0:00:45.5]} 24... Rbxc8 {[%clk 0:00:20.1]}
25. Qxb7 {[%clk 0:00:41.5]} 25... f5 {[%clk 0:00:17.7]} 26. exf5 {[%clk
0:00:38.5]} 26... gxf5 {[%clk 0:00:17.1]} 27. Bxf5 {[%clk 0:00:38.4]} 27... Rb8
{[%clk 0:00:16.5]} 28. Qd7 {[%clk 0:00:33]} 28... Rbd8 {[%clk 0:00:16.2]} 29.
Qe6+ {[%clk 0:00:32.8]} 29... Kh8 {[%clk 0:00:16.9]} 30. Rf3 {[%clk 0:00:29.4]}
30... Rde8 {[%clk 0:00:16.3]} 31. Qxd6 {[%clk 0:00:29.2]} 31... Bf6 {[%clk
0:00:15.8]} 32. Ng4 {[%clk 0:00:28.6]} 32... Rg8 {[%clk 0:00:15.5]} 33. Kh1
{[%clk 0:00:25.9]} 33... Bg5 {[%clk 0:00:14.6]} 34. Bxg5 {[%clk 0:00:25.7]}
34... Qxg5 {[%clk 0:00:15.5]} 35. Rxe5 {[%clk 0:00:23.8]} 35... Qc1+ {[%clk
0:00:14.3]} 36. Kg2 {[%clk 0:00:24.1]} 36... Nf4+ {[%clk 0:00:13.9]} 37. Rxf4
{[%clk 0:00:24.7]} 37... Qxf4 {[%clk 0:00:13.6]} 38. Qf6+ {[%clk 0:00:25.3]}
38... Rg7 {[%clk 0:00:12.3]} 39. Rxe8# {[%clk 0:00:26.2]} 1-0

[Event "Late-Titled-Tuesday-Blitz-June-04-2024"]
[Site "Chess.com"]
[Date "2024.06.04"]
[Round "4"]
[White "WilliamAlfaroCaracas"]
[Black "YurasovMat-2012"]
[Result "0-1"]
[WhiteElo "2392"]
[BlackElo "2598"]
[TimeControl "180+1"]
[EndTime "14:38:15 PDT"]
[Termination "YurasovMat-2012 won on time"]

1. Nf3 {[%clk 0:03:00.9]} 1... Nf6 {[%clk 0:02:58.7]} 2. c4 {[%clk 0:02:59.2]}
2... d5 {[%clk 0:02:59.6]} 3. cxd5 {[%clk 0:02:58.7]} 3... Nxd5 {[%clk
0:02:59.2]} 4. e4 {[%clk 0:02:57.6]} 4... Nb6 {[%clk 0:02:56.8]} 5. d4 {[%clk
0:02:56.6]} 5... g6 {[%clk 0:02:57.3]} 6. h4 {[%clk 0:02:55.1]} 6... Bg4 {[%clk
0:02:53.7]} 7. h5 {[%clk 0:02:52.2]} 7... gxh5 {[%clk 0:02:53.5]} 8. Nc3 {[%clk
0:02:46.4]} 8... Bg7 {[%clk 0:02:52.1]} 9. Be3 {[%clk 0:02:46.8]} 9... Nc6
{[%clk 0:02:51.6]} 10. d5 {[%clk 0:01:47.6]} 10... Ne5 {[%clk 0:02:46.9]} 11.
Be2 {[%clk 0:01:48.1]} 11... Nxf3+ {[%clk 0:02:42.1]} 12. Bxf3 {[%clk 0:01:49]}
12... Qd7 {[%clk 0:02:39.2]} 13. Rxh5 {[%clk 0:01:25.8]} 13... Bxh5 {[%clk
0:02:36.7]} 14. Bxh5 {[%clk 0:01:26.7]} 14... Nc4 {[%clk 0:02:35.1]} 15. Bd4
{[%clk 0:01:21.3]} 15... e5 {[%clk 0:02:22]} 16. Bc5 {[%clk 0:01:05.6]} 16... b6
{[%clk 0:02:21.6]} 17. Bg4 {[%clk 0:00:42.4]} 17... f5 {[%clk 0:02:00.5]} 18.
Bxf5 {[%clk 0:00:40.2]} 18... Qf7 {[%clk 0:01:57.9]} 19. Qa4+ {[%clk 0:00:38]}
19... Kd8 {[%clk 0:01:56.6]} 20. Qxc4 {[%clk 0:00:37.1]} 20... bxc5 {[%clk
0:01:57.2]} 21. Qxc5 {[%clk 0:00:37.2]} 21... Bf8 {[%clk 0:01:57]} 22. Qc6
{[%clk 0:00:29.5]} 22... Rb8 {[%clk 0:01:57.3]} 23. Nb5 {[%clk 0:00:14.2]} 23...
Bb4+ {[%clk 0:01:51.4]} 24. Ke2 {[%clk 0:00:13.6]} 24... a6 {[%clk 0:01:12.5]}
25. Qxa6 {[%clk 0:00:08.4]} 25... Qh5+ {[%clk 0:01:12.3]} 26. g4 {[%clk
0:00:07.6]} 26... Qg5 {[%clk 0:01:12.5]} 27. Na7 {[%clk 0:00:04.2]} 27... Qd2+
{[%clk 0:01:01.1]} 28. Kf3 {[%clk 0:00:04.3]} 28... Bc5 {[%clk 0:00:12.8]} 29.
Qf6+ {[%clk 0:00:03]} 29... Ke8 {[%clk 0:00:10.1]} 0-1

[Event "Late-Titled-Tuesday-Blitz-June-04-2024"]
[Site "Chess.com"]
[Date "2024.06.04"]
[Round "4"]
[White "Supelyel"]
[Black "malti"]
[Result "1-0"]
[WhiteElo "2433"]
[BlackElo "2112"]
[TimeControl "180+1"]
[EndTime "14:38:23 PDT"]
[Termination "Supelyel won on time"]

1. c4 {[%clk 0:03:00.9]} 1... Nf6 {[%clk 0:02:57.5]} 2. Nc3 {[%clk 0:02:58.3]}
2... g6 {[%clk 0:02:58]} 3. g3 {[%clk 0:02:58.3]} 3... Bg7 {[%clk 0:02:57.2]} 4.
Bg2 {[%clk 0:02:58.5]} 4... O-O {[%clk 0:02:57.7]} 5. Nf3 {[%clk 0:02:58.9]}
5... d6 {[%clk 0:02:58.1]} 6. O-O {[%clk 0:02:59.5]} 6... e5 {[%clk 0:02:58.4]}
7. d3 {[%clk 0:02:58.7]} 7... Nc6 {[%clk 0:02:58.7]} 8. Bg5 {[%clk 0:02:58.7]}
8... h6 {[%clk 0:02:47.4]} 9. Bxf6 {[%clk 0:02:58.4]} 9... Qxf6 {[%clk
0:02:47.4]} 10. Rb1 {[%clk 0:02:53.4]} 10... a5 {[%clk 0:02:43.6]} 11. a3 {[%clk
0:02:53.1]} 11... Qd8 {[%clk 0:01:56.4]} 12. b4 {[%clk 0:02:46.3]} 12... axb4
{[%clk 0:01:57.3]} 13. axb4 {[%clk 0:02:46.9]} 13... f5 {[%clk 0:01:55.4]} 14.
Qc2 {[%clk 0:02:45.1]} 14... Be6 {[%clk 0:01:42.2]} 15. b5 {[%clk 0:02:28]}
15... Ne7 {[%clk 0:01:39.8]} 16. Nd2 {[%clk 0:02:15.4]} 16... c6 {[%clk
0:01:37.8]} 17. bxc6 {[%clk 0:02:11]} 17... bxc6 {[%clk 0:01:38.7]} 18. Rb7
{[%clk 0:02:10.7]} 18... d5 {[%clk 0:01:31.6]} 19. Rfb1 {[%clk 0:01:57.2]} 19...
e4 {[%clk 0:01:24.9]} 20. Na4 {[%clk 0:01:48.9]} 20... Bc8 {[%clk 0:00:55.3]}
21. R7b6 {[%clk 0:01:39.4]} 21... Bd4 {[%clk 0:00:39.2]} 22. Rb8 {[%clk
0:01:35.9]} 22... Rxb8 {[%clk 0:00:34.3]} 23. Rxb8 {[%clk 0:01:36.8]} 23... e3
{[%clk 0:00:32.4]} 24. fxe3 {[%clk 0:01:25.5]} 24... Bxe3+ {[%clk 0:00:33.3]}
25. Kh1 {[%clk 0:01:25.7]} 25... Qa5 {[%clk 0:00:33.2]} 26. Nf1 {[%clk
0:00:57.2]} 26... Ba7 {[%clk 0:00:30.8]} 27. Rb1 {[%clk 0:00:40.6]} 27... f4
{[%clk 0:00:21.1]} 28. c5 {[%clk 0:00:21.8]} 28... fxg3 {[%clk 0:00:14.8]} 29.
Nxg3 {[%clk 0:00:21.8]} 29... Nf5 {[%clk 0:00:14.3]} 30. Nxf5 {[%clk 0:00:19.9]}
30... Bxf5 {[%clk 0:00:15.2]} 31. Nb6 {[%clk 0:00:19.4]} 31... Qa6 {[%clk
0:00:09.3]} 32. e4 {[%clk 0:00:18.8]} 32... Bg4 {[%clk 0:00:08.8]} 33. exd5
{[%clk 0:00:18.6]} 33... cxd5 {[%clk 0:00:08.3]} 34. Nxd5 {[%clk 0:00:18.1]}
34... Qc8 {[%clk 0:00:07.6]} 35. c6 {[%clk 0:00:16.4]} 35... Rf2 {[%clk
0:00:05.2]} 36. Ne7+ {[%clk 0:00:16.4]} 36... Kh7 {[%clk 0:00:02.2]} 37. Qxf2
{[%clk 0:00:15.7]} 1-0

[Event "Late-Titled-Tuesday-Blitz-June-04-2024"]
[Site "Chess.com"]
[Date "2024.06.04"]
[Round "4"]
[White "chrisclaireredfield"]
[Black "Revan_2002"]
[Result "0-1"]
[WhiteElo "2551"]
[BlackElo "2797"]
[TimeControl "180+1"]
[EndTime "14:38:25 PDT"]
[Termination "Revan_2002 won by resignation"]

1. Nf3 {[%clk 0:03:00.9]} 1... Nf6 {[%clk 0:02:59.7]} 2. g3 {[%clk 0:03:00.7]}
2... d5 {[%clk 0:02:59]} 3. Bg2 {[%clk 0:03:00.5]} 3... c6 {[%clk 0:02:59.5]} 4.
c4 {[%clk 0:03:00]} 4... dxc4 {[%clk 0:02:57.4]} 5. O-O {[%clk 0:02:59.9]} 5...
e6 {[%clk 0:02:55.7]} 6. Qc2 {[%clk 0:02:56.4]} 6... b5 {[%clk 0:02:51.7]} 7. a4
{[%clk 0:02:44.2]} 7... Bb7 {[%clk 0:02:50.7]} 8. Ne5 {[%clk 0:02:11.5]} 8...
Qd4 {[%clk 0:02:46.7]} 9. Qc3 {[%clk 0:02:04.1]} 9... Qxc3 {[%clk 0:02:29.1]}
10. Nxc3 {[%clk 0:02:03.4]} 10... b4 {[%clk 0:02:28.6]} 11. Nb5 {[%clk
0:02:01.2]} 11... Na6 {[%clk 0:02:18.9]} 12. Nxc6 {[%clk 0:01:57.9]} 12... Bc5
{[%clk 0:02:14.6]} 13. d4 {[%clk 0:01:46]} 13... cxd3 {[%clk 0:02:04.8]} 14.
exd3 {[%clk 0:01:45.9]} 14... Nd5 {[%clk 0:01:38.1]} 15. Na5 {[%clk 0:01:33.6]}
15... O-O-O {[%clk 0:01:05.4]} 16. Nxb7 {[%clk 0:01:31.9]} 16... Kxb7 {[%clk
0:01:06.3]} 17. d4 {[%clk 0:01:31.6]} 17... Bb6 {[%clk 0:01:05]} 18. a5 {[%clk
0:01:30.1]} 18... Bc7 {[%clk 0:01:03.2]} 19. Nxc7 {[%clk 0:01:26.3]} 19... Nxc7
{[%clk 0:01:02.7]} 20. Bf4 {[%clk 0:01:26.1]} 20... Nb5 {[%clk 0:00:55.8]} 21.
a6+ {[%clk 0:01:20.2]} 21... Kb6 {[%clk 0:00:55.6]} 22. Be3 {[%clk 0:00:49.1]}
22... Rc8 {[%clk 0:00:52.9]} 23. Rfc1 {[%clk 0:00:42.1]} 23... b3 {[%clk
0:00:52]} 24. Bxd5 {[%clk 0:00:30.7]} 24... exd5 {[%clk 0:00:51.4]} 25. Rc5
{[%clk 0:00:30.4]} 25... Rxc5 {[%clk 0:00:49.9]} 26. dxc5+ {[%clk 0:00:30.5]}
26... Kc6 {[%clk 0:00:50.5]} 27. Ra4 {[%clk 0:00:23]} 27... Rd8 {[%clk
0:00:42.8]} 28. Rb4 {[%clk 0:00:22.4]} 28... d4 {[%clk 0:00:43]} 29. Bd2 {[%clk
0:00:22.5]} 29... Kxc5 {[%clk 0:00:42.8]} 30. Rxb3 {[%clk 0:00:22.9]} 30... Kb6
{[%clk 0:00:27]} 31. Rf3 {[%clk 0:00:20.1]} 31... Rd7 {[%clk 0:00:24.3]} 32. Rf5
{[%clk 0:00:12.9]} 32... Kxa6 {[%clk 0:00:24.6]} 33. Kg2 {[%clk 0:00:13.1]}
33... Kb6 {[%clk 0:00:24.8]} 34. g4 {[%clk 0:00:11]} 34... Kc6 {[%clk
0:00:17.8]} 35. h4 {[%clk 0:00:10.7]} 35... Nd6 {[%clk 0:00:17.1]} 36. Ra5
{[%clk 0:00:09.5]} 36... Nc4 {[%clk 0:00:16.8]} 37. Ra6+ {[%clk 0:00:03.3]}
37... Kb5 {[%clk 0:00:16.6]} 0-1